bitfinex-derivatives/quotes_BTCF0:USTF0_20230701
["timestamp","ask_amount","ask_price","bid_price","bid_amount"]
[1688251746276,0.92833841,30590.0,30589.0,0.39926445]
[1688251751587,0.92833841,30590.0,30589.0,0.380415]
[1688251757184,0.92833841,30590.0,30589.0,0.39864469]
[1688251757385,0.92833841,30590.0,30589.0,0.380415]
[1688251757689,0.92833841,30590.0,30589.0,0.39864469]
[1688251758187,0.92833841,30590.0,30589.0,0.03784469]
[1688251758386,0.92833841,30590.0,30589.0,0.380415]
[1688251758883,0.92833841,30590.0,30589.0,0.39864469]
[1688251759077,0.92833841,30590.0,30589.0,0.41749414]
[1688251759475,0.92833841,30590.0,30589.0,0.39926445]
[1688251759679,0.92833841,30590.0,30589.0,0.41749414]
[1688251760785,0.92833841,30590.0,30589.0,0.39926445]
[1688251761189,0.92833841,30590.0,30589.0,0.41749414]
[1688251761386,0.92827841,30590.0,30589.0,0.41749414]
[1688251762591,0.92827841,30590.0,30589.0,0.39926445]
[1688251765790,0.92827841,30590.0,30589.0,0.380415]
[1688251766898,0.92827841,30590.0,30589.0,0.41749414]
[1688251767589,0.92827841,30590.0,30589.0,0.39926445]
[1688251769401,0.92827841,30590.0,30589.0,0.41749414]
[1688251770495,0.92827841,30590.0,30589.0,0.39926445]
[1688251770684,0.92827841,30590.0,30589.0,0.380415]
[1688251771596,0.92827841,30590.0,30589.0,0.39926445]
[1688251771794,0.57517841,30590.0,30589.0,0.76949414]
[1688251773289,0.57517841,30590.0,30589.0,1.13029414]
[1688251773894,0.92487841,30590.0,30589.0,1.13029414]
[1688251783005,0.92487841,30590.0,30589.0,0.40869414]
[1688251783204,0.92487841,30590.0,30589.0,0.76949414]
[1688251783912,0.92667841,30590.0,30589.0,0.77059414]
[1688251787208,0.92667841,30590.0,30589.0,0.40979414]
[1688251787406,0.92667841,30590.0,30589.0,0.77059414]
[1688251793806,0.92827841,30590.0,30589.0,0.77059414]
[1688251803812,0.92827841,30590.0,30589.0,0.380415]
[1688251804208,0.92827841,30590.0,30589.0,0.39864469]
[1688251804413,1.25997841,30590.0,30589.0,0.39864469]
[1688251806124,1.27233864,30590.0,30589.0,0.39864469]
[1688251807222,1.27233864,30590.0,30589.0,0.39804469]
[1688251810726,1.27233864,30590.0,30589.0,0.41689414]
[1688251810910,1.27233864,30590.0,30589.0,0.39804469]
[1688251811426,1.27233864,30590.0,30589.0,0.379815]
[1688251812224,1.27233864,30590.0,30589.0,0.39804469]
[1688251813520,1.27233864,30590.0,30589.0,0.379815]
[1688251813826,1.27233864,30590.0,30589.0,0.75114469]
[1688251814526,1.27233864,30590.0,30589.0,0.732915]
[1688251815528,1.27233864,30590.0,30589.0,0.75114469]
[1688251816122,1.27233864,30590.0,30589.0,0.39034469]
[1688251816323,1.27233864,30590.0,30589.0,0.75114469]
[1688251817821,1.27233864,30590.0,30589.0,0.39034469]
[1688251818126,1.27233864,30590.0,30589.0,0.75114469]
[1688251823232,1.27233864,30590.0,30589.0,0.75120469]
[1688251823434,1.27233864,30590.0,30589.0,0.77005414]
[1688251833838,1.27073864,30590.0,30589.0,0.77005414]
[1688251838339,1.27073864,30590.0,30589.0,0.75182445]
[1688251838538,1.27073864,30590.0,30589.0,0.77005414]
[1688251841139,1.25837841,30590.0,30589.0,0.77005414]
[1688251844244,1.25837841,30590.0,30589.0,1.13085414]
[1688251848633,1.25837841,30590.0,30589.0,1.13067414]
[1688251849640,1.25837841,30590.0,30589.0,0.40907414]
[1688251849940,1.25837841,30590.0,30589.0,1.13067414]
[1688251851138,1.25837841,30590.0,30589.0,1.093595]
[1688251851735,1.25837841,30590.0,30589.0,1.11182469]
[1688251852245,1.25837841,30590.0,30589.0,1.13067414]
[1688251852646,1.25837841,30590.0,30589.0,0.40907414]
[1688251852939,1.25837841,30590.0,30589.0,1.11244445]
[1688251853145,1.25837841,30590.0,30589.0,1.13067414]
[1688251854541,1.25837841,30590.0,30589.0,1.11244445]
[1688251854848,1.25837841,30590.0,30589.0,0.39084445]
[1688251855145,1.25837841,30590.0,30589.0,0.75164445]
[1688251856742,1.25837841,30590.0,30589.0,0.76987414]
[1688251858353,1.25837841,30590.0,30589.0,0.75164445]
[1688251858649,1.25837841,30590.0,30589.0,0.39084445]
[1688251858844,1.25837841,30590.0,30589.0,0.76987414]
[1688251861652,1.25837841,30590.0,30589.0,0.75164445]
[1688251861852,1.25837841,30590.0,30589.0,0.76987414]
[1688251862153,1.25837841,30590.0,30589.0,0.732795]
[1688251862752,1.25837841,30590.0,30589.0,0.75102469]
[1688251863950,1.25837841,30590.0,30589.0,0.76987414]
[1688251864347,1.25837841,30590.0,30589.0,0.75164445]
[1688251865856,1.25837841,30590.0,30589.0,0.76987414]
[1688251866858,1.25837841,30590.0,30589.0,0.75164445]
[1688251867852,1.25837841,30590.0,30589.0,0.39084445]
[1688251868056,1.25837841,30590.0,30589.0,0.75164445]
[1688251868357,1.25837841,30590.0,30589.0,0.76987414]
[1688251868555,1.25837841,30590.0,30589.0,0.75164445]
[1688251870050,1.25837841,30590.0,30589.0,0.76987414]
[1688251873063,0.08453074,30590.0,30589.0,0.76987414]
[1688251873270,0.00049036,30593.0,30591.0,0.05]
[1688251873472,0.06640069,30597.0,30593.0,0.05]
[1688251873673,0.32142381,30599.0,30596.0,0.7128]
[1688251873886,0.32017299,30599.0,30598.0,0.3531]
[1688251874169,0.23472253,30599.0,30598.0,0.372709]
[1688251874376,0.23472253,30599.0,30598.0,0.40978814]
[1688251874571,0.1107456,30599.0,30598.0,0.40978814]
[1688251877470,0.1107456,30599.0,30598.0,0.40612814]
[1688251881068,0.12767257,30599.0,30598.0,0.40612814]
[1688251882278,0.12767257,30599.0,30598.0,1.12772814]
[1688251883074,0.12767257,30599.0,30598.0,0.40612814]
[1688251883378,0.12767257,30599.0,30598.0,1.12772814]
[1688251884470,0.04316166,30599.0,30598.0,1.12772814]
[1688251901897,0.04316166,30599.0,30598.0,0.40612814]
[1688251902101,0.04316166,30599.0,30598.0,1.12772814]
[1688251916602,0.1276658,30599.0,30598.0,1.12772814]
[1688251916798,0.12766578,30599.0,30598.0,1.12772814]
[1688251928797,0.12766578,30599.0,30598.0,0.40612814]
[1688251929002,0.12766578,30599.0,30598.0,1.12772814]
[1688251937233,0.29089487,30602.0,30598.0,1.12772814]
[1688251937420,0.29089487,30602.0,30601.0,0.7139]
[1688251937610,0.39097651,30605.0,30601.0,0.733507]
[1688251937809,0.39097651,30605.0,30604.0,0.7139]
[1688251938016,0.82555289,30606.0,30604.0,0.733505]
[1688251938313,0.73476652,30606.0,30605.0,0.3531]
[1688251938519,0.41776652,30606.0,30605.0,0.40978314]
[1688251938817,0.51977402,30606.0,30605.0,0.40978314]
[1688251939509,0.53937802,30606.0,30605.0,0.40978314]
[1688251940317,0.62387723,30606.0,30605.0,0.40978314]
[1688251941722,0.62387723,30606.0,30605.0,0.372704]
[1688251942917,0.62387723,30606.0,30605.0,0.40978314]
[1688251943610,0.62387723,30606.0,30605.0,0.39155345]
[1688251943811,0.60427323,30606.0,30605.0,0.39155345]
[1688251944010,0.72184961,30606.0,30605.0,0.39155345]
[1688251944611,0.72184961,30606.0,30605.0,0.75235345]
[1688251945016,0.73794239,30606.0,30605.0,0.77058314]
[1688251945623,0.73794239,30606.0,30605.0,0.75235345]
[1688251945915,0.73794239,30606.0,30605.0,0.77058314]
[1688251946415,0.73794239,30606.0,30605.0,0.733504]
[1688251949220,0.73794239,30606.0,30605.0,0.75173369]
[1688251949920,0.73794239,30606.0,30605.0,0.77058314]
[1688251953616,1.1289189,30606.0,30605.0,0.77058314]
[1688251954425,1.01134252,30606.0,30605.0,0.77058314]
[1688251956326,1.01134252,30606.0,30605.0,0.75235345]
[1688251956732,1.01134252,30606.0,30605.0,0.733504]
[1688251958127,0.62036601,30606.0,30605.0,0.733504]
[1688251960821,0.62036601,30606.0,30605.0,0.372704]
[1688251961126,0.62036601,30606.0,30605.0,0.75173369]
[1688251961630,0.62036601,30606.0,30605.0,0.733504]
[1688251962220,0.62036601,30606.0,30605.0,0.75173369]
[1688251962631,0.62036601,30606.0,30605.0,0.733504]
[1688251962932,0.62036601,30606.0,30605.0,0.75235345]
[1688251964232,0.62036601,30606.0,30605.0,0.39155345]
[1688251964434,0.62036601,30606.0,30605.0,0.77058314]
[1688251964731,0.62036601,30606.0,30605.0,0.75235345]
[1688251964917,0.73794239,30606.0,30605.0,0.75235345]
[1688251965122,0.73794239,30606.0,30605.0,0.77058314]
[1688251966134,0.73794239,30606.0,30605.0,0.75173369]
[1688251966432,0.73794239,30606.0,30605.0,0.733504]
[1688251968233,0.73794239,30606.0,30605.0,0.75173369]
[1688251968432,0.73794239,30606.0,30605.0,0.372704]
[1688251968735,0.73794239,30606.0,30605.0,0.733504]
[1688251969232,1.1289189,30606.0,30605.0,0.733504]
[1688251969831,0.73794239,30606.0,30605.0,0.733504]
[1688251970733,1.1289189,30606.0,30605.0,0.733504]
[1688251971825,1.4820189,30606.0,30605.0,0.733504]
[1688251973337,1.4820189,30606.0,30605.0,0.75173369]
[1688251973941,1.4820189,30606.0,30605.0,0.733504]
[1688251976339,1.09104239,30606.0,30605.0,0.733504]
[1688251982839,1.4820189,30606.0,30605.0,0.733504]
[1688251983430,1.4820189,30606.0,30605.0,0.372704]
[1688251983632,1.4820189,30606.0,30605.0,0.733504]
[1688251983938,1.19244714,30606.0,30605.0,0.733504]
[1688251984138,1.09104239,30606.0,30605.0,0.733504]
[1688251984528,0.97346601,30606.0,30605.0,0.733504]
[1688251985433,0.9818743,30606.0,30605.0,0.733504]
[1688251986243,0.9818743,30606.0,30605.0,0.372704]
[1688251986436,0.9818743,30606.0,30605.0,0.733504]
[1688251991040,0.9818743,30606.0,30605.0,0.75173369]
[1688251991041,1.37371797,30606.0,30605.0,0.75173369]
[1688251991240,1.37371797,30606.0,30605.0,0.733504]
[1688251991443,1.49129435,30606.0,30605.0,0.733504]
[1688252003848,1.48939435,30606.0,30605.0,0.730604]
[1688252006243,1.19895543,30606.0,30605.0,0.730604]
[1688252006444,1.09755068,30606.0,30605.0,0.730604]
[1688252007435,0.9799743,30606.0,30605.0,0.730604]
[1688252012151,1.37181439,30606.0,30605.0,0.730604]
[1688252012944,0.9799743,30606.0,30605.0,0.730604]
[1688252013154,1.37181144,30606.0,30605.0,0.730604]
[1688252013452,1.48938782,30606.0,30605.0,0.730604]
[1688252016661,1.48938782,30606.0,30605.0,0.369804]
[1688252016850,1.48938782,30606.0,30605.0,0.730604]
[1688252017554,1.48938782,30606.0,30605.0,0.369804]
[1688252017859,1.48938782,30606.0,30605.0,0.730604]
[1688252018962,1.48938782,30606.0,30605.0,0.75654626]
[1688252019860,1.09755068,30606.0,30605.0,0.75654626]
[1688252020562,1.48938782,30606.0,30605.0,0.75654626]
[1688252029574,1.09755068,30606.0,30605.0,0.75654626]
[1688252031079,1.48938782,30606.0,30605.0,0.75654626]
[1688252031980,1.48938782,30606.0,30605.0,0.75944626]
[1688252036091,1.19895543,30606.0,30605.0,0.75944626]
[1688252036276,0.9799743,30606.0,30605.0,0.75944626]
[1688252036476,1.37186018,30606.0,30605.0,0.75944626]
[1688252037487,1.48943656,30606.0,30605.0,0.75944626]
[1688252043792,1.48943656,30606.0,30605.0,0.380404]
[1688252044183,1.50904056,30606.0,30603.0,0.359113]
[1688252044493,0.74308588,30604.0,30603.0,0.049013]
[1688252044690,0.84719009,30604.0,30603.0,0.049013]
[1688252044994,0.87182399,30604.0,30603.0,0.049013]
[1688252045788,0.47993811,30604.0,30603.0,0.049013]
[1688252047089,0.46033311,30604.0,30603.0,0.049013]
[1688252047397,0.10913311,30604.0,30603.0,0.402113]
[1688252047587,0.10913311,30604.0,30603.0,0.43919214]
[1688252055602,0.10913311,30604.0,30603.0,0.79999214]
[1688252062004,0.10913311,30604.0,30603.0,1.10229214]
[1688252066113,0.12873811,30604.0,30603.0,1.10229214]
[1688252066298,0.12873811,30604.0,30603.0,1.065213]
[1688252067300,0.12873811,30604.0,30603.0,1.10229214]
[1688252067500,0.12873811,30604.0,30603.0,0.74149214]
[1688252067807,0.12873811,30604.0,30603.0,1.10229214]
[1688252069712,0.12873811,30604.0,30603.0,0.74149214]
[1688252070009,0.12879811,30604.0,30603.0,1.10229214]
[1688252070712,0.12879811,30604.0,30603.0,0.74149214]
[1688252070908,0.12879811,30604.0,30603.0,1.10229214]
[1688252071105,0.12879811,30604.0,30603.0,0.74149214]
[1688252071301,0.12879811,30604.0,30603.0,1.10229214]
[1688252072620,0.12879811,30604.0,30603.0,1.08406245]
[1688252073008,0.12879811,30604.0,30603.0,1.10229214]
[1688252073905,0.48189811,30604.0,30603.0,1.10229214]
[1688252074619,0.48189811,30604.0,30603.0,0.74149214]
[1688252074814,0.48189811,30604.0,30603.0,1.10229214]
[1688252075115,0.48189811,30604.0,30603.0,1.065213]
[1688252075421,0.48189811,30604.0,30603.0,1.080213]
[1688252075914,0.48189811,30604.0,30603.0,1.11729214]
[1688252078115,0.48189811,30604.0,30603.0,0.75649214]
[1688252078315,0.48189811,30604.0,30603.0,1.11729214]
[1688252082807,0.48189811,30604.0,30603.0,1.09906245]
[1688252083007,0.48189811,30604.0,30603.0,1.11729214]
[1688252083825,0.48189811,30604.0,30603.0,0.76419214]
[1688252085627,0.48189811,30604.0,30603.0,0.74919214]
[1688252085823,0.48189811,30604.0,30603.0,0.38839214]
[1688252086025,0.48189811,30604.0,30603.0,0.74919214]
[1688252086828,0.48189811,30604.0,30603.0,0.38839214]
[1688252087018,0.48189811,30604.0,30603.0,0.74919214]
[1688252088131,0.48189811,30604.0,30603.0,0.38839214]
[1688252088327,0.48189811,30604.0,30603.0,0.74919214]
[1688252089319,0.48189811,30604.0,30603.0,0.73034269]
[1688252089516,0.48189811,30604.0,30603.0,0.409813]
[1688252095438,0.48189811,30604.0,30603.0,0.049013]
[1688252098337,0.48189811,30604.0,30603.0,0.06786245]
[1688252099134,0.48189811,30604.0,30603.0,0.42866245]
[1688252099335,0.48189811,30604.0,30603.0,0.409813]
[1688252104942,0.48189811,30604.0,30603.0,0.049013]
[1688252105139,0.48189811,30604.0,30603.0,0.409813]
[1688252108444,0.48189811,30604.0,30603.0,0.3608]
[1688252108939,0.48189811,30604.0,30603.0,0.380406]
[1688252109632,0.48189811,30604.0,30603.0,0.3608]
[1688252114842,0.48189811,30604.0,30603.0,0.380405]
[1688252118547,0.48189811,30604.0,30603.0,0.3608]
[1688252119248,0.48189811,30604.0,30603.0,0.380405]
[1688252128858,0.48189811,30604.0,30603.0,0.019605]
[1688252129048,0.48189811,30604.0,30603.0,0.380405]
[1688252129959,0.48189811,30604.0,30603.0,0.019605]
[1688252130155,0.48189811,30604.0,30603.0,0.380405]
[1688252130362,0.48183811,30604.0,30603.0,0.380405]
[1688252131851,0.48189811,30604.0,30603.0,0.380405]
[1688252133049,0.48189811,30604.0,30603.0,0.019605]
[1688252147971,0.46229311,30604.0,30603.0,0.019605]
[1688252148270,0.10919311,30604.0,30603.0,0.39155445]
[1688252148467,0.10919311,30604.0,30603.0,0.40978414]
[1688252150770,0.10919311,30604.0,30603.0,0.77058414]
[1688252152765,0.10919311,30604.0,30603.0,0.40978414]
[1688252152966,0.10919311,30604.0,30603.0,0.77058414]
[1688252158888,0.10919311,30604.0,30603.0,0.40978414]
[1688252159086,0.10919311,30604.0,30603.0,0.77058414]
[1688252162484,0.12879811,30604.0,30603.0,0.733505]
[1688252162683,0.12879811,30604.0,30603.0,0.75173469]
[1688252163091,0.12879811,30604.0,30603.0,0.77058414]
[1688252165601,0.10919311,30604.0,30603.0,0.77058414]
[1688252167699,0.10919311,30604.0,30603.0,0.40978414]
[1688252167892,0.10919311,30604.0,30603.0,0.77058414]
[1688252168491,0.12879811,30604.0,30603.0,0.77058414]
[1688252170890,0.12879811,30604.0,30603.0,0.733505]
[1688252171097,0.12879811,30604.0,30603.0,0.75173469]
[1688252171399,0.12879811,30604.0,30603.0,0.77058414]
[1688252173904,0.47999811,30604.0,30603.0,0.40978414]
[1688252174199,0.47999811,30604.0,30603.0,0.77058414]
[1688252175703,0.47999811,30604.0,30603.0,0.75173469]
[1688252177006,0.47999811,30604.0,30603.0,0.39093469]
[1688252177299,0.47999811,30604.0,30603.0,0.75173469]
[1688252177806,0.47999811,30604.0,30603.0,0.77058414]
[1688252180601,0.47999811,30604.0,30603.0,0.733505]
[1688252181108,0.47999811,30604.0,30603.0,0.372705]
[1688252181302,0.47999811,30604.0,30603.0,0.75235445]
[1688252181808,0.47999811,30604.0,30603.0,0.77058414]
[1688252186415,0.46039311,30604.0,30603.0,0.77058414]
[1688252189611,0.46039311,30604.0,30603.0,0.40978414]
[1688252190313,0.46039311,30604.0,30603.0,0.77058414]
[1688252192125,0.46033311,30604.0,30603.0,0.77058414]
[1688252193621,0.46039311,30604.0,30603.0,0.77058414]
[1688252193822,0.10919311,30604.0,30603.0,0.77058414]
[1688252197520,0.12879811,30604.0,30603.0,0.77058414]
[1688252200624,0.12879811,30604.0,30603.0,0.40978414]
[1688252201025,0.12879811,30604.0,30603.0,0.77058414]
[1688252201715,0.12879811,30604.0,30603.0,0.40978414]
[1688252202224,0.12879811,30604.0,30603.0,0.77058414]
[1688252202410,0.12879811,30604.0,30603.0,0.733505]
[1688252203128,0.12879811,30604.0,30603.0,0.75173469]
[1688252203826,0.47959811,30604.0,30603.0,0.75173469]
[1688252204324,0.47959811,30604.0,30603.0,0.733505]
[1688252205020,0.47959811,30604.0,30603.0,0.75173469]
[1688252206229,0.47959811,30604.0,30603.0,0.733505]
[1688252206725,0.47959811,30604.0,30603.0,0.372705]
[1688252206925,0.47959811,30604.0,30603.0,0.733505]
[1688252207627,0.47959811,30604.0,30603.0,0.372705]
[1688252207924,0.47959811,30604.0,30603.0,0.733505]
[1688252209131,0.47959811,30604.0,30603.0,0.372705]
[1688252209629,0.47959811,30604.0,30603.0,0.733505]
[1688252210029,0.47959811,30604.0,30603.0,0.372705]
[1688252210427,0.47959811,30604.0,30603.0,0.733505]
[1688252211034,0.47959811,30604.0,30603.0,0.372705]
[1688252211220,0.47959811,30604.0,30603.0,0.733505]
[1688252211834,0.47959811,30604.0,30603.0,0.75173469]
[1688252212236,0.47959811,30604.0,30603.0,0.77058414]
[1688252212434,0.47959811,30604.0,30603.0,0.40978414]
[1688252212634,0.47959811,30604.0,30603.0,0.77058414]
[1688252213236,0.47959811,30604.0,30603.0,0.75235445]
[1688252213835,0.47959811,30604.0,30603.0,0.77058414]
[1688252214035,0.47959811,30604.0,30603.0,0.39155445]
[1688252214236,0.47959811,30604.0,30603.0,0.75235445]
[1688252215137,0.47959811,30604.0,30603.0,0.39155445]
[1688252215528,0.47959811,30604.0,30603.0,0.75235445]
[1688252216235,0.47959811,30604.0,30603.0,0.77058414]
[1688252216737,0.47959811,30604.0,30603.0,0.75235445]
[1688252217137,0.47959811,30604.0,30603.0,0.77058414]
[1688252218639,0.47959811,30604.0,30603.0,0.40978414]
[1688252218832,0.47959811,30604.0,30603.0,0.77058414]
[1688252220141,0.47959811,30604.0,30603.0,0.75173469]
[1688252221841,0.47959811,30604.0,30603.0,0.733505]
[1688252223841,0.47959811,30604.0,30603.0,0.380405]
[1688252224743,0.45496421,30604.0,30603.0,0.380405]
[1688252224941,0.47366711,30604.0,30603.0,0.380405]
[1688252225239,0.47366711,30604.0,30603.0,0.019605]
[1688252254052,0.47360711,30604.0,30603.0,0.019605]
[1688252255347,0.47366711,30604.0,30603.0,0.019605]
[1688252260052,0.47366711,30604.0,30602.0,0.00049012]
[1688252260258,0.47366711,30604.0,30598.0,0.058827]
[1688252260259,0.78449921,30603.0,30598.0,0.058827]
[1688252260447,0.3531,30598.0,30596.0,0.065367]
[1688252260649,0.51160372,30597.0,30596.0,0.065367]
[1688252260853,0.51965833,30597.0,30596.0,0.065367]
[1688252261346,0.51965833,30597.0,30596.0,0.377167]
[1688252261347,0.13843339,30597.0,30596.0,0.377167]
[1688252261654,0.55493696,30598.0,30596.0,0.377167]
[1688252261856,0.02565079,30597.0,30596.0,0.377167]
[1688252262045,0.37875079,30597.0,30596.0,0.377167]
[1688252262241,0.05193204,30597.0,30596.0,0.41424614]
[1688252262454,0.07588044,30597.0,30596.0,0.41424614]
[1688252262757,0.019609,30597.0,30596.0,0.377167]
[1688252262953,0.02285524,30597.0,30596.0,0.377167]
[1688252263159,0.049024,30598.0,30596.0,0.377167]
[1688252263357,0.372709,30597.0,30596.0,0.377167]
[1688252263649,0.06549851,30597.0,30596.0,0.39539669]
[1688252264546,0.27316833,30602.0,30596.0,0.73805478]
[1688252264851,0.3531,30597.0,30596.0,0.73805478]
[1688252265158,0.45722652,30597.0,30596.0,0.75628447]
[1688252265546,0.45722652,30597.0,30596.0,0.75619669]
[1688252266341,0.45722652,30597.0,30596.0,0.77504614]
[1688252266950,0.13039709,30597.0,30596.0,0.77504614]
[1688252267349,0.27988355,30601.0,30596.0,0.737967]
[1688252267553,0.3515,30597.0,30596.0,0.77504614]
[1688252268658,0.02467057,30597.0,30596.0,0.77504614]
[1688252268953,0.04427957,30597.0,30596.0,0.77504614]
[1688252269161,0.04427957,30597.0,30596.0,0.75619669]
[1688252270454,0.12879842,30597.0,30596.0,0.75619669]
[1688252270763,0.12879842,30597.0,30596.0,0.75628447]
[1688252270963,0.10918942,30597.0,30596.0,0.75628447]
[1688252271263,0.10918942,30597.0,30596.0,0.77513392]
[1688252274452,0.10918942,30597.0,30596.0,0.77504614]
[1688252279656,0.10918942,30597.0,30596.0,0.41424614]
[1688252279856,0.10918942,30597.0,30596.0,0.77504614]
[1688252280058,0.10918942,30597.0,30596.0,0.41424614]
[1688252280262,0.10918942,30597.0,30596.0,0.77504614]
[1688252282067,0.15550819,30597.0,30596.0,0.77504614]
[1688252286970,0.13589919,30597.0,30596.0,0.77504614]
[1688252288668,0.11122862,30597.0,30596.0,1.12814614]
[1688252294975,0.03392862,30597.0,30596.0,1.12814614]
[1688252295164,0.3512,30600.0,30596.0,1.12814614]
[1688252295472,0.3512,30600.0,30599.0,0.732408]
[1688252295863,0.3512,30600.0,30599.0,0.76948714]
[1688252296262,0.37729096,30600.0,30599.0,0.76948714]
[1688252296973,0.02609096,30600.0,30599.0,0.76948714]
[1688252297367,0.3531,30601.0,30599.0,0.76948714]
[1688252297675,0.3531,30601.0,30600.0,0.3531]
[1688252297878,0.3531,30601.0,30600.0,0.39093669]
[1688252298176,0.43761066,30601.0,30600.0,0.372707]
[1688252298374,0.43761066,30601.0,30600.0,0.678807]
[1688252299876,0.43761066,30601.0,30600.0,0.69703669]
[1688252300269,0.43761066,30601.0,30600.0,0.678807]
[1688252300574,0.43761066,30601.0,30600.0,0.69703669]
[1688252300961,0.43761066,30601.0,30600.0,0.678807]
[1688252301769,0.43761066,30601.0,30600.0,0.69703669]
[1688252301969,0.43761066,30601.0,30600.0,0.678807]
[1688252302370,0.43761066,30601.0,30600.0,0.69703669]
[1688252303272,0.43761066,30601.0,30600.0,1.05783669]
[1688252303982,0.08451066,30601.0,30600.0,1.05783669]
[1688252309881,0.08451066,30601.0,30600.0,0.69703669]
[1688252310281,0.08451066,30601.0,30600.0,1.05783669]
[1688252311684,0.08451066,30601.0,30600.0,0.69703669]
[1688252311886,0.08451066,30601.0,30600.0,1.05783669]
[1688252312786,0.08451066,30601.0,30600.0,1.07668614]
[1688252319292,0.08451066,30601.0,30600.0,0.71588614]
[1688252319584,0.08451066,30601.0,30600.0,1.07668614]
[1688252319789,0.08451066,30601.0,30600.0,0.71588614]
[1688252319984,0.08451066,30601.0,30600.0,1.07668614]
[1688252321175,0.08451066,30601.0,30600.0,0.71588614]
[1688252321380,0.08451066,30601.0,30600.0,1.07668614]
[1688252322486,0.08451066,30601.0,30600.0,0.71588614]
[1688252322682,0.08451066,30601.0,30600.0,1.07668614]
[1688252322881,0.08451066,30601.0,30600.0,0.71588614]
[1688252323082,0.08451066,30601.0,30600.0,1.07668614]
[1688252336104,0.08451066,30601.0,30600.0,0.71588614]
[1688252336304,0.08451066,30601.0,30600.0,1.07668614]
[1688252353506,0.08451066,30601.0,30600.0,0.71588614]
[1688252353706,0.08451066,30601.0,30600.0,1.07668614]
[1688252359312,0.08451066,30601.0,30600.0,0.71588614]
[1688252359513,0.08451066,30601.0,30600.0,1.07668614]
[1688252360415,0.08451066,30601.0,30600.0,0.71588614]
[1688252360718,0.08451066,30601.0,30600.0,1.07668614]
[1688252369330,0.08451066,30601.0,30600.0,1.43748614]
[1688252369819,0.08451066,30601.0,30600.0,0.71588614]
[1688252370014,0.08451066,30601.0,30600.0,1.43748614]
[1688252371129,0.08451066,30601.0,30600.0,0.71588614]
[1688252371331,0.08451066,30601.0,30600.0,1.43748614]
[1688252376237,0.06777308,30601.0,30600.0,1.84058614]
[1688252376438,0.07537285,30601.0,30600.0,1.84058614]
[1688252376646,0.05836731,30601.0,30600.0,1.84058614]
[1688252381251,0.02582259,30603.0,30600.0,1.84058614]
[1688252381431,0.084495,30602.0,30601.0,0.03707914]
[1688252381636,0.084495,30602.0,30601.0,0.369807]
[1688252382244,0.084495,30602.0,30601.0,0.40688614]
[1688252385745,0.084495,30602.0,30601.0,1.12848614]
[1688252392656,0.084495,30602.0,30601.0,0.40688614]
[1688252393259,0.084495,30602.0,30601.0,1.12848614]
[1688252395757,0.11112944,30602.0,30601.0,1.12848614]
[1688252396964,0.11112944,30602.0,30601.0,0.40688614]
[1688252397367,0.11112944,30602.0,30601.0,1.12848614]
[1688252398673,0.11112944,30602.0,30601.0,0.40688614]
[1688252398966,0.11112944,30602.0,30601.0,1.12848614]
[1688252399867,0.11112944,30602.0,30601.0,0.40688614]
[1688252400061,0.02663444,30602.0,30601.0,1.12848614]
[1688252400464,0.74927638,30609.0,30601.0,1.12848614]
[1688252400664,0.6317,30609.0,30608.0,0.7128]
[1688252400964,0.05439551,30609.0,30608.0,0.732402]
[1688252401168,0.54607421,30609.0,30608.0,0.732402]
[1688252401563,0.4916787,30609.0,30608.0,0.732402]
[1688252402868,0.51816911,30609.0,30608.0,0.732402]
[1688252405370,0.51816911,30609.0,30608.0,0.75063169]
[1688252405671,0.51816911,30609.0,30608.0,0.76948114]
[1688252405972,0.54401255,30609.0,30608.0,0.76948114]
[1688252407972,0.54401255,30609.0,30608.0,0.75063169]
[1688252409371,0.54401255,30609.0,30608.0,0.76948114]
[1688252412066,0.54401255,30609.0,30608.0,0.40868114]
[1688252412262,0.54401255,30609.0,30608.0,0.76948114]
[1688252420868,0.54401255,30609.0,30608.0,0.40868114]
[1688252421170,0.54401255,30609.0,30608.0,0.76948114]
[1688252440992,0.53623185,30609.0,30608.0,0.76948114]
[1688252442784,0.53623185,30609.0,30608.0,1.13028114]
[1688252450002,0.53623185,30609.0,30608.0,0.40868114]
[1688252450202,0.53623185,30609.0,30608.0,1.13028114]
[1688252452704,0.53623185,30609.0,30608.0,0.40868114]
[1688252452913,0.53623185,30609.0,30608.0,1.13028114]
[1688252453096,0.53623185,30609.0,30608.0,0.40868114]
[1688252453403,0.53623185,30609.0,30608.0,1.13028114]
[1688252455706,0.53623185,30609.0,30608.0,0.40868114]
[1688252455909,0.53623185,30609.0,30608.0,1.13028114]
[1688252461309,0.53623185,30609.0,30608.0,0.40868114]
[1688252461517,0.53623185,30609.0,30608.0,1.13028114]
[1688252461903,0.53623185,30609.0,30608.0,0.40868114]
[1688252462215,0.53623185,30609.0,30608.0,1.13028114]
[1688252470218,0.11762037,30617.0,30611.0,0.0696]
[1688252470408,0.1824325,30618.0,30617.0,0.019597]
[1688252470615,0.33255246,30623.0,30617.0,0.369797]
[1688252470809,0.33255246,30623.0,30622.0,0.369493]
[1688252471005,0.33255246,30623.0,30622.0,0.38772269]
[1688252471216,0.82455768,30623.0,30622.0,0.38772269]
[1688252472516,0.85049655,30623.0,30622.0,0.38772269]
[1688252472825,0.85049655,30623.0,30622.0,0.369493]
[1688252473516,0.85049655,30623.0,30622.0,0.38772269]
[1688252473725,0.85049655,30623.0,30622.0,0.369493]
[1688252477811,0.87474618,30623.0,30622.0,0.369493]
[1688252478710,0.87474618,30623.0,30622.0,0.38772269]
[1688252478927,0.87474618,30623.0,30622.0,0.369493]
[1688252480121,0.89433918,30623.0,30622.0,0.369493]
[1688252482416,0.89433918,30623.0,30622.0,0.38834245]
[1688252483115,0.87474618,30623.0,30622.0,0.38834245]
[1688252483314,0.60713498,30623.0,30622.0,0.39154245]
[1688252483724,0.60713498,30623.0,30622.0,0.40956298]
[1688252484122,0.60713498,30623.0,30622.0,0.39133329]
[1688252484515,0.60713498,30623.0,30622.0,0.37248384]
[1688252486827,0.60713498,30623.0,30622.0,0.40956298]
[1688252487912,0.60713498,30623.0,30622.0,0.77036298]
[1688252495034,0.60713498,30623.0,30622.0,0.75213329]
[1688252495733,0.60713498,30623.0,30622.0,0.77036298]
[1688252497439,0.60713498,30623.0,30622.0,0.77015789]
[1688252498533,0.60713498,30623.0,30622.0,0.7519282]
[1688252498738,0.60713498,30623.0,30622.0,0.77015789]
[1688252502637,0.60713498,30623.0,30622.0,0.77009789]
[1688252507843,0.60713498,30623.0,30622.0,0.40929789]
[1688252508028,0.60713498,30623.0,30622.0,0.77009789]
[1688252509632,0.60713498,30623.0,30622.0,0.40929789]
[1688252509833,0.60713498,30623.0,30622.0,0.77009789]
[1688252513242,0.6147352,30623.0,30622.0,0.77009789]
[1688252517643,0.6147352,30623.0,30622.0,0.76993607]
[1688252519031,0.54979394,30623.0,30622.0,0.76993607]